fUST/lending_fUST_20250328
["ID","MTS","AMOUNT","RATE_DAILY","PERIOD"]
[356773636,1743154233822,-151.0,0.00030136,7]
[356773637,1743154233831,-757.63,0.00030136,10]
[356773638,1743154233843,-218.943045,0.00030136,7]
[356773639,1743154233853,-500.0,0.00030136,10]
[356773640,1743154233863,-500.0,0.00030136,10]
[356773641,1743154233873,-500.0,0.00030136,10]
[356773642,1743154233883,-500.0,0.00030136,10]
[356773643,1743154233892,-1167.18,0.00030136,10]
[356773644,1743154233903,-506.40629824,0.00030136,10]
[356773645,1743154233913,-500.0,0.00030136,10]
[356773646,1743154233923,-500.0,0.00030136,10]
[356773647,1743154233933,-151.0,0.00030136,7]
[356773648,1743154233943,-151.0,0.00030136,7]
[356773649,1743154233953,-500.0,0.00030136,10]
[356773650,1743154233963,-151.0,0.00030136,7]
[356773651,1743154233972,-151.0,0.00030136,7]
[356773652,1743154233982,-500.0,0.00030136,10]
[356773653,1743154233991,-755.45,0.00030136,10]
[356773654,1743154234001,-500.0,0.00030136,10]
[356773655,1743154234011,-500.0,0.00030136,10]
[356773656,1743154234021,-500.0,0.00030136,10]
[356773657,1743154234030,-500.0,0.00030136,10]
[356773658,1743154234040,-500.0,0.00030136,10]
[356773659,1743154234240,-500.0,0.00030136,10]
[356773660,1743154234250,-999.72,0.00030136,10]
[356773661,1743154234259,-500.0,0.00030136,10]
[356773662,1743154234268,-500.0,0.00030136,10]
[356773663,1743154234277,-500.0,0.00030136,10]
[356773664,1743154234286,-744.43,0.00030136,10]
[356773665,1743154234295,-506.80974564,0.00030136,10]
[356773666,1743154234304,-506.9180006,0.00030136,10]
[356773667,1743154234313,-524.82,0.00030136,10]
[356773668,1743154234323,-500.0,0.00030136,10]
[356773669,1743154234332,-500.0,0.00030136,10]
[356773670,1743154234343,-701.14,0.00030136,10]
[356773671,1743154234352,-510.65194306,0.00030136,10]
[356773672,1743154234361,-1349.3,0.00030136,10]
[356773673,1743154234370,-500.0,0.00030136,10]
[356773674,1743154234380,-500.0,0.00030136,10]
[356773675,1743154234390,-517.97,0.00030136,10]
[356773676,1743154234399,-500.0,0.00030136,10]
[356773677,1743154234408,-500.0,0.00030136,10]
[356773678,1743154234417,-384.16325058,0.00030136,10]
[356773679,1743154234427,-500.0,0.00030136,10]
[356773680,1743154234436,-500.0,0.00030136,10]
[356773681,1743154234446,-500.0,0.00030136,10]
[356773682,1743154234456,-500.0,0.00030136,10]
[356773683,1743154234467,-500.0,0.00030136,10]
[356773684,1743154234476,-500.0,0.00030136,10]
[356773685,1743154234485,-541.98670563,0.00030136,10]
[356773686,1743154234494,-500.0,0.00030136,10]
[356773687,1743154234503,-500.0,0.00030136,10]
[356773688,1743154234513,-151.0,0.00030136,7]
[356773689,1743154234523,-151.0,0.00030136,7]
[356773690,1743154234532,-151.28539,0.00030136,7]
[356773691,1743154234542,-500.0,0.00030136,10]
[356773692,1743154234551,-500.0,0.00030136,10]
[356773693,1743154234560,-500.0,0.00030136,10]
[356773694,1743154234569,-500.0,0.00030136,10]
[356773695,1743154234579,-500.0,0.00030136,10]
[356773696,1743154234588,-500.0,0.00030136,10]
[356773697,1743154234598,-256.997572,0.00030136,7]
[356773698,1743154234607,-500.0,0.00030136,10]
[356773699,1743154234616,-890.63,0.00030136,10]
[356773700,1743154234626,-1205.7,0.00030136,10]
[356773701,1743154234635,-500.0,0.00030136,10]
[356773702,1743154234644,-500.0,0.00030136,10]
[356773703,1743154234654,-500.0,0.00030136,10]
[356773704,1743154234663,-500.0,0.00030136,10]
[356773705,1743154234673,-500.0,0.00030136,10]
[356773706,1743154234682,-500.0,0.00030136,10]
[356773707,1743154234691,-503.90709025,0.00030136,10]
[356773708,1743154234700,-556.73,0.00030136,10]
[356773709,1743154234709,-500.0,0.00030136,10]
[356773710,1743154234719,-500.0,0.00030136,10]
[356773711,1743154234728,-1294.92,0.00030136,10]
[356773712,1743154234738,-500.0,0.00030136,10]
[356773713,1743154234747,-1128.5,0.00030136,10]
[356773714,1743154234756,-500.0,0.00030136,10]
[356773715,1743154234765,-500.0,0.00030136,10]
[356773716,1743154234775,-625.07958929,0.00030136,10]
[356773717,1743154234784,-500.0,0.00030136,10]
[356773718,1743154234793,-500.0,0.00030136,10]
[356773719,1743154234802,-500.0,0.00030136,10]
[356773720,1743154234812,-500.0,0.00030136,10]
[356773721,1743154234822,-500.0,0.00030136,10]
[356773722,1743154234831,-530.78505649,0.00030136,10]
[356773723,1743154234842,-500.0,0.00030136,10]
[356773724,1743154234851,-500.0,0.00030136,10]
[356773725,1743154234861,-506.71977928,0.00030136,10]
[356773726,1743154234871,-2541.13,0.00030136,10]
[356773727,1743154234880,-500.0,0.00030136,10]
[356773728,1743154234889,-567.66,0.00030136,10]
[356773729,1743154234899,-500.0,0.00030136,10]
[356773730,1743154234909,-500.0,0.00030136,2]
[356773731,1743154234918,-500.0,0.00030136,10]
[356773732,1743154234928,-500.0,0.00030136,10]
[356773733,1743154234937,-1633.25,0.00030136,10]
[356773734,1743154234949,-500.0,0.00030136,10]
[356773735,1743154234959,-500.0,0.00030136,10]
[356773736,1743154234968,-500.0,0.00030136,10]
[356773737,1743154234978,-507.67353636,0.00030136,10]
[356773738,1743154234987,-500.0,0.00030136,10]
[356773739,1743154234997,-1250.66,0.00030136,10]
[356773740,1743154235006,-500.0,0.00030136,10]
[356773741,1743154235015,-500.0,0.00030136,10]
[356773742,1743154235024,-500.0,0.00030136,10]
[356773743,1743154235033,-500.0,0.00030136,10]
[356773744,1743154235042,-1956.24,0.00030136,10]
[356773745,1743154235052,-1653.22,0.00030136,10]
[356773746,1743154235060,-500.0,0.00030136,10]
[356773747,1743154235070,-500.0,0.00030136,10]
[356773748,1743154235079,-500.0,0.00030136,10]
[356773749,1743154235088,-500.0,0.00030136,10]
[356773750,1743154235098,-508.49127457,0.00030136,10]
[356773751,1743154235107,-500.0,0.00030136,10]
[356773752,1743154235116,-3727.66,0.00030136,10]
[356773753,1743154235126,-500.0,0.00030136,30]
[356773754,1743154235134,-500.0,0.00030136,30]
[356773755,1743154235144,-602.912178,0.00030136,30]
[356773756,1743154235154,-500.0,0.00030136,10]
[356773757,1743154235164,-500.0,0.00030136,10]
[356773758,1743154235173,-500.0,0.00030136,10]
[356773759,1743154235182,-500.0,0.00030136,10]
[356773760,1743154235191,-500.0,0.00030136,10]
[356773761,1743154235202,-500.0,0.00030136,10]
[356773762,1743154235211,-500.0,0.00030136,10]
[356773763,1743154235220,-500.0,0.00030136,10]
[356773764,1743154235230,-785.48,0.00030136,10]
[356773765,1743154235240,-1532.14,0.00030136,10]
[356773766,1743154235249,-3923.81,0.00030136,10]
[356773767,1743154235258,-500.0,0.00030136,10]
[356773768,1743154235268,-500.0,0.00030136,10]
[356773769,1743154235277,-909.26,0.00030136,10]
[356773770,1743154235286,-500.0,0.00030136,10]
[356773771,1743154235295,-500.0,0.00030136,10]
[356773772,1743154235304,-500.0,0.00030136,10]
[356773773,1743154235314,-500.0,0.00030136,10]
[356773774,1743154235324,-1920.17,0.00030136,10]
[356773775,1743154235333,-500.0,0.00030136,10]
[356773776,1743154235344,-500.0,0.00030136,10]
[356773777,1743154235354,-500.0,0.00030136,10]
[356773778,1743154235363,-658.9,0.00030136,10]
[356773779,1743154235373,-500.0,0.00030136,10]
[356773780,1743154235383,-500.0,0.00030136,10]
[356773781,1743154235392,-623.13911177,0.00030136,10]
[356773782,1743154235402,-1107.06,0.00030136,10]
[356773783,1743154235411,-3866.12,0.00030136,10]
[356773784,1743154235420,-500.0,0.00030136,10]
[356773785,1743154235430,-1741.02,0.00030136,10]
[356773786,1743154235440,-601.95,0.00030136,10]
[356773787,1743154235449,-500.0,0.00030136,10]
[356773788,1743154235458,-500.0,0.00030136,10]
[356773789,1743154235467,-1237.32,0.00030136,10]
[356773790,1743154235477,-500.0,0.00030136,10]
[356773791,1743154235486,-510.73857548,0.00030136,10]
[356773792,1743154235495,-2910.38,0.00030136,10]
[356773793,1743154235504,-500.0,0.00030136,10]
[356773794,1743154235513,-500.0,0.00030136,10]
[356773795,1743154235522,-500.0,0.00030136,10]
[356773796,1743154235531,-1423.55,0.00030136,10]
[356773797,1743154235541,-500.0,0.00030136,10]
[356773798,1743154235550,-151.0,0.00030136,7]
[356773799,1743154235559,-151.0,0.00030136,7]
[356773800,1743154235568,-151.0,0.00030136,7]
[356773801,1743154235578,-151.0,0.00030136,7]
[356773802,1743154235587,-156.278633,0.00030136,7]
[356773803,1743154235597,-500.0,0.00030136,10]
[356773804,1743154235606,-500.0,0.00030136,10]
[356773805,1743154235616,-500.0,0.00030136,10]
[356773806,1743154235626,-500.0,0.00030136,10]
[356773807,1743154235636,-500.0,0.00030136,10]
[356773808,1743154235645,-818.93,0.00030136,10]
[356773809,1743154235654,-612.08,0.00030136,10]
[356773810,1743154235663,-500.0,0.00030136,10]
[356773811,1743154235673,-1110.98,0.00030136,10]
[356773812,1743154235682,-500.0,0.00030136,10]
[356773813,1743154235691,-502.92158215,0.00030136,10]
[356773814,1743154235701,-500.0,0.00030136,10]
[356773815,1743154235710,-151.0,0.00030136,7]
[356773816,1743154235719,-151.0,0.00030136,7]
[356773817,1743154235728,-153.964805,0.00030136,7]
[356773818,1743154235737,-613.38,0.00030136,10]
[356773819,1743154235747,-500.0,0.00030136,10]
[356773820,1743154235755,-500.0,0.00030136,10]
[356773821,1743154235764,-500.0,0.00030136,10]
[356773822,1743154235773,-500.0,0.00030136,10]
[356773823,1743154235782,-2012.78,0.00030136,10]
[356773824,1743154235791,-500.0,0.00030136,10]
[356773825,1743154235800,-779.74,0.00030136,10]
[356773826,1743154235809,-763.03,0.00030136,10]
[356773827,1743154235818,-500.0,0.00030136,10]
[356773828,1743154235827,-151.0,0.00030136,7]
[356773829,1743154235837,-151.0,0.00030136,7]
[356773830,1743154235848,-239.481624,0.00030136,7]
[356773831,1743154235857,-501.40670886,0.00030136,10]
[356773832,1743154235867,-500.0,0.00030136,10]
[356773833,1743154235877,-500.0,0.00030136,10]
[356773834,1743154235886,-500.0,0.00030136,10]
[356773835,1743154235896,-500.0,0.00030136,10]
[356773836,1743154235905,-683.37,0.00030136,10]
[356773837,1743154235915,-1352.28,0.00030136,10]
[356773838,1743154235925,-500.0,0.00030136,10]
[356773839,1743154235934,-500.0,0.00030136,10]
[356773840,1743154235944,-3897.75,0.00030136,10]
[356773841,1743154235953,-500.0,0.00030136,10]
[356773842,1743154235962,-500.0,0.00030136,10]
[356773843,1743154235972,-500.0,0.00030136,10]
[356773844,1743154235982,-500.0,0.00030136,10]
[356773845,1743154235992,-500.0,0.00030136,10]
[356773846,1743154236001,-1814.41,0.00030136,10]
[356773847,1743154236011,-500.0,0.00030136,10]
[356773848,1743154236020,-151.0,0.00030136,7]
[356773849,1743154236029,-500.0,0.00030136,10]
[356773850,1743154236039,-258.66958781,0.00030136,10]
[356773851,1743154236049,-271.080119,0.00030136,7]
[356773852,1743154236059,-151.0,0.00030136,7]
[356773853,1743154236068,-186.352719,0.00030136,7]
[356773854,1743154236078,-500.0,0.00030136,10]
[356773855,1743154236088,-722.3,0.00030136,10]
[356773856,1743154236098,-500.0,0.00030136,10]
[356773857,1743154236107,-500.0,0.00030136,10]
[356773858,1743154236120,-500.0,0.00030136,10]
[356773859,1743154236129,-559.46,0.00030136,10]
[356773860,1743154236139,-559.46,0.00030136,10]
[356773861,1743154236149,-559.46,0.00030136,10]
[356773862,1743154236162,-1370.03,0.00030136,10]
[356773863,1743154236171,-559.46,0.00030136,10]
[356773864,1743154236180,-559.46,0.00030136,10]
[356773865,1743154236190,-559.46,0.00030136,10]
[356773866,1743154236200,-559.46,0.00030136,10]
[356773867,1743154236210,-559.46,0.00030136,10]
[356773868,1743154236219,-559.46,0.00030136,10]
[356773869,1743154236229,-559.46,0.00030136,10]
[356773870,1743154236238,-559.46,0.00030136,10]
[356773871,1743154236247,-500.0,0.00030136,10]
[356773872,1743154236257,-559.46,0.00030136,10]
[356773873,1743154236266,-500.0,0.00030136,10]
[356773874,1743154236275,-500.0,0.00030136,10]
[356773875,1743154236285,-559.46,0.00030136,10]
[356773876,1743154236295,-559.46,0.00030136,10]
[356773877,1743154236305,-559.46,0.00030136,10]
[356773878,1743154236315,-559.46,0.00030136,10]
[356773879,1743154236324,-559.46,0.00030136,10]
[356773880,1743154236334,-559.46,0.00030136,10]
[356773881,1743154236345,-559.46,0.00030136,10]
[356773882,1743154236354,-559.46,0.00030136,10]
[356773883,1743154236363,-500.0,0.00030136,10]
[356773884,1743154236372,-559.46,0.00030136,10]
[356773885,1743154236382,-559.46,0.00030136,10]
[356773886,1743154236392,-559.46,0.00030136,10]
[356773887,1743154236402,-500.0,0.00030136,10]
[356773888,1743154236412,-559.68,0.00030136,10]
[356773889,1743154236422,-1425.37,0.00030136,10]
[356773890,1743154236432,-500.0,0.00030136,10]
[356773891,1743154236441,-502.1,0.00030136,10]
[356773892,1743154236451,-312.37819879,0.00030136,10]
[356773893,1743154236460,-500.0,0.00030136,10]
[356773894,1743154236470,-826.86,0.00030136,10]
[356773895,1743154236481,-500.0,0.00030136,10]
[356773896,1743154236490,-1059.64,0.00030136,10]
[356773897,1743154236500,-500.0,0.00030136,10]
[356773898,1743154236509,-500.0,0.00030136,10]
[356773899,1743154236518,-929.42,0.00030136,10]
[356773900,1743154236528,-500.0,0.00030136,10]
[356773901,1743154236537,-500.0,0.00030136,10]
[356773902,1743154236547,-500.0,0.00030136,10]
[356773903,1743154236556,-523.62906921,0.00030136,10]
[356773904,1743154236565,-151.0,0.00030136,7]
[356773905,1743154236575,-500.0,0.00030136,10]
[356773906,1743154236584,-500.0,0.00030136,10]
[356773907,1743154236595,-500.0,0.00030136,10]
[356773908,1743154236604,-1661.97,0.00030136,10]
[356773909,1743154236613,-500.0,0.00030136,10]
[356773910,1743154236622,-1521.83,0.00030136,10]
[356773911,1743154236631,-151.0,0.00030136,7]
[356773912,1743154236641,-151.0,0.00030136,7]
[356773913,1743154236650,-151.0,0.00030136,7]
[356773914,1743154236659,-500.0,0.00030136,10]
[356773915,1743154236669,-500.0,0.00030136,10]
[356773916,1743154236678,-151.0,0.00030136,7]
[356773917,1743154236688,-151.0,0.00030136,7]
[356773918,1743154236697,-500.0,0.00030136,10]
[356773919,1743154236706,-500.0,0.00030136,10]
[356773920,1743154236716,-943.64,0.00030136,10]
[356773921,1743154236725,-368.6212106,0.00030136,10]
[356773922,1743154236734,-500.0,0.00030136,10]
[356773923,1743154236743,-630.4,0.00030136,10]
[356773924,1743154236752,-917.85,0.00030136,10]
[356773925,1743154236762,-500.0,0.00030136,10]
[356773926,1743154236771,-606.32,0.00030136,10]
[356773927,1743154236780,-151.0,0.00030136,7]
[356773928,1743154236790,-151.0,0.00030136,7]
[356773929,1743154236800,-154.806369,0.00030136,7]
[356773930,1743154236809,-500.0,0.00030136,10]
[356773931,1743154236819,-526.57,0.00030136,10]
[356773932,1743154236829,-500.0,0.00030136,10]
[356773933,1743154236839,-1266.55,0.00030136,10]
[356773934,1743154236849,-1591.29,0.00030136,10]
[356773935,1743154236858,-500.0,0.00030136,10]
[356773936,1743154236867,-1623.86,0.00030136,10]
[356773937,1743154236877,-500.0,0.00030136,10]
[356773938,1743154236886,-1099.93,0.00030136,10]
[356773939,1743154236900,-693.97,0.00030136,10]
[356773940,1743154236909,-385.94994001,0.00030136,10]
[356773941,1743154236918,-1424.86,0.00030136,10]
[356773942,1743154236927,-500.0,0.00030136,10]
[356773943,1743154236937,-500.0,0.00030136,10]
[356773944,1743154236946,-2232.81,0.00030136,10]
[356773945,1743154236955,-500.0,0.00030136,10]
[356773946,1743154236964,-500.0,0.00030136,10]
[356773947,1743154236973,-643.31,0.00030136,10]
[356773948,1743154236983,-580.45,0.00030136,10]
[356773949,1743154236993,-500.0,0.00030136,10]
[356773950,1743154237002,-525.09945832,0.00030136,10]
[356773951,1743154237011,-500.0,0.00030136,10]
[356773952,1743154237021,-2255.18,0.00030136,10]
[356773953,1743154237034,-500.0,0.00030136,10]
[356773954,1743154237044,-8744.31,0.00030136,10]
[356773955,1743154237055,-228.28064557,0.00030136,10]
[356773956,1743154237064,-500.0,0.00030136,10]
[356773957,1743154237074,-500.0,0.00030136,7]
[356773958,1743154237084,-500.0,0.00030136,10]
[356773959,1743154237095,-500.0,0.00030136,10]
[356773960,1743154237104,-1248.4,0.00030136,10]
[356773961,1743154237113,-500.0,0.00030136,10]
[356773962,1743154237123,-500.0,0.00030136,10]
[356773963,1743154237133,-500.0,0.00030136,10]
[356773964,1743154237142,-500.0,0.00030136,10]
[356773965,1743154237152,-3189.46,0.00030136,10]
[356773966,1743154237164,-500.0,0.00030136,10]
[356773968,1743154237318,-500.0,0.00030136,10]
[356773969,1743154237328,-500.0,0.00030136,10]
[356773970,1743154237338,-29346.97,0.00030136,10]
[356773971,1743154237348,-500.0,0.00030136,10]
[356773972,1743154237357,-500.0,0.00030136,10]
[356773973,1743154237367,-500.0,0.00030136,10]
[356773974,1743154237376,-500.0,0.00030136,10]
[356773975,1743154237386,-500.0,0.00030136,10]
[356773977,1743154237395,-500.0,0.00030136,10]
[356773979,1743154237404,-500.0,0.00030136,10]
[356773980,1743154237414,-500.0,0.00030136,10]
[356773982,1743154237424,-500.0,0.00030136,10]
[356773984,1743154237434,-1494.81,0.00030136,10]
[356773985,1743154237443,-4007.63,0.00030136,10]
[356773986,1743154237453,-500.0,0.00030136,10]
[356773987,1743154237462,-1419.68,0.00030136,10]
[356773988,1743154237471,-777.66,0.00030136,10]
[356773989,1743154237481,-500.0,0.00030136,10]
[356773990,1743154237491,-500.0,0.00030136,10]
[356773991,1743154237501,-500.0,0.00030136,10]
[356773992,1743154237511,-4985.32,0.00030136,10]
[356773993,1743154237521,-3883.14,0.00030136,10]
[356773994,1743154237531,-500.0,0.00030136,10]
[356773995,1743154237542,-500.0,0.00030136,10]
[356773996,1743154237551,-500.0,0.00030136,10]
[356773997,1743154237561,-500.0,0.00030136,10]
[356773999,1743154237571,-908.01,0.00030136,2]
[356774000,1743154237583,-500.0,0.00030136,10]
[356774001,1743154237592,-826.58,0.00030136,10]
[356774002,1743154237602,-3617.83,0.00030136,10]
[356774003,1743154237611,-500.0,0.00030136,10]
[356774004,1743154237620,-610.89551008,0.00030136,10]
[356774005,1743154237630,-12658.93,0.00030136,10]
[356774006,1743154237639,-158.294782,0.00030136,7]
[356774007,1743154237648,-1209.69,0.00030136,10]
[356774008,1743154237658,-519.19423425,0.00030136,10]
[356774009,1743154237667,-158.294782,0.00030136,7]
[356774010,1743154237678,-158.294782,0.00030136,7]
[356774011,1743154237688,-500.0,0.00030136,10]
[356774012,1743154237700,-158.294782,0.00030136,7]
[356774013,1743154237709,-500.0,0.00030136,10]
[356774014,1743154237718,-158.294782,0.00030136,7]
[356774015,1743154237728,-1407.99,0.00030136,10]
[356774016,1743154237737,-158.294782,0.00030136,7]
[356774017,1743154237746,-500.0,0.00030136,10]
[356774018,1743154237757,-158.294782,0.00030136,7]
[356774019,1743154237766,-158.294782,0.00030136,7]
[356774020,1743154237775,-500.0,0.00030136,10]
[356774021,1743154237785,-511.8857937,0.00030136,10]
[356774022,1743154237795,-158.294782,0.00030136,7]
[356774023,1743154237805,-556.1,0.00030136,10]
[356774024,1743154237814,-641.82057688,0.00030136,10]
[356774025,1743154237867,-5741.61942312,0.00030136,10]
[356774026,1743154237876,-158.294782,0.00030136,7]
[356774027,1743154237885,-500.0,0.00030136,10]
[356774028,1743154237895,-4407.92,0.00030136,10]
[356774029,1743154237904,-500.0,0.00030136,10]
[356774030,1743154237913,-500.0,0.00030136,10]
[356774031,1743154237923,-500.0,0.00030136,10]
[356774032,1743154237932,-615.11,0.00030136,10]
[356774033,1743154237941,-500.0,0.00030136,7]
[356774034,1743154237950,-7951.32,0.00030136,2]
[356774035,1743154237960,-500.0,0.00030136,10]
[356774036,1743154237969,-500.0,0.00030136,10]
[356774037,1743154237979,-500.0,0.00030136,10]
[356774038,1743154237988,-967.19,0.00030136,10]
[356774039,1743154237998,-1290.34,0.00030136,10]
[356774040,1743154238007,-500.0,0.00030136,10]
[356774041,1743154238017,-168.92516,0.00030136,7]
[356774042,1743154238027,-500.0,0.00030136,10]
[356774043,1743154238036,-350.14241043,0.00030136,10]
[356774051,1743154240148,-427.47688887,0.00030136,3]
[356774066,1743154243051,-84.495077,0.00030136,3]
[356774084,1743154245952,-109.97006607,0.00030136,3]
[356774085,1743154246078,-2756.1480932,0.00030136,3]
[356774086,1743154246093,-527.47415528,0.00030136,3]
[356774087,1743154246181,-106.18699193,0.00030136,3]
[356774088,1743154246190,-1374.27303172,0.00030136,10]
[356774089,1743154246210,-1024.95,0.00030136,10]
[356774090,1743154246236,-852.054773,0.00030136,10]
[356774097,1743154259019,-424.94389979,0.00030136,10]
[356774099,1743154263722,-155.73614748,0.00029938,2]
[356774103,1743154270488,-500.0,0.00030136,10]
[356774104,1743154273023,-370.51,0.00030136,10]
[356774106,1743154294103,-500.0,0.00030136,10]
[356774107,1743154295213,-1146.21124174,0.00030136,10]
[356774108,1743154302399,-250.0,0.00030136,10]
[356774109,1743154320708,-218.49776043,0.00030136,10]
[356774110,1743154330099,-152.93349173,0.00030136,10]
[356774116,1743154390935,-152.93349173,0.00024953,3]
[356774117,1743154391232,-97.06650827,0.00029938,2]
[356774125,1743154411547,-37.24521793,0.00029938,2]
[356774126,1743154411569,-212.75478207,0.0003,2]
[356774128,1743154415952,-195.99239,0.00024953,3]
[356774130,1743154416477,-54.00761,0.00024953,3]
[356774138,1743154671125,-262.80855199,0.00030134,120]
[356774139,1743154671147,-37.19144801,0.00030136,10]
[356774140,1743154679040,-150.0,0.00024703,3]
[356774141,1743154695207,-198.71719148,0.00030136,10]
[356774142,1743154697563,-396.53100959,0.00030136,10]
[356774163,1743155144143,-182.31924862,0.00028349,2]
[356774166,1743155155086,-36.17851178,0.00028349,2]
[356774167,1743155155107,-172.33053476,0.00028758,2]
[356774173,1743155226102,-77.66946524,0.00028758,2]
[356774174,1743155226124,-500.0,0.00029009,2]
[356774175,1743155226145,-8832.94690337,0.0002998,2]
[356774176,1743155267270,-1000.0,0.00032,120]
[356774177,1743155349082,-3726.20500135,0.0002988,2]
[356774178,1743155366147,-470.05906309,0.0002988,2]
[356774179,1743155366168,-1402.17382698,0.0002998,2]
[356774180,1743155366190,-312.77256998,0.0003,2]
[356774181,1743155366212,-714.5103116,0.00030025,2]
[356774182,1743155366233,-151.0,0.00030108,2]
[356774183,1743155366254,-302.0,0.00030108,2]
[356774184,1743155366275,-600.0,0.00030108,2]
[356774185,1743155366297,-5623.20721533,0.00030126,2]
[356774186,1743155374255,-222.46547049,0.00030126,2]
[356774187,1743155374277,-159.35,0.00030126,2]
[356774188,1743155374299,-198.45098446,0.00030135,2]
[356774189,1743155374321,-835.12233967,0.00030136,3]
[356774190,1743155374343,-160.0,0.00030136,3]
[356774191,1743155374364,-160.0,0.00030136,3]
[356774192,1743155374385,-418.56810427,0.00030136,3]
[356774193,1743155374407,-12458.93820146,0.00030136,3]
[356774194,1743155374428,-2005.87563617,0.00030136,3]
[356774195,1743155374450,-7092.48440171,0.00030136,2]
[356774196,1743155408043,272.53324418,0.00024953,3]
[356774226,1743155432023,-426.09,0.00030107,2]
[356774556,1743155437981,-50809.59036,0.00030107,2]
[356774557,1743155437990,-151.0,0.00030108,2]
[356774558,1743155438000,-302.0,0.00030108,2]
[356774559,1743155438010,-600.0,0.00030108,2]
[356774560,1743155438020,-160.0,0.00030136,3]
[356774561,1743155438030,-160.0,0.00030136,3]
[356774562,1743155438039,-2793.97229064,0.00030136,2]
[356774574,1743155441709,-1930.33198153,0.00030136,2]
[356774575,1743155441872,-0.017424,0.00030136,2]
[356774601,1743155443218,-8629.05842816,0.00030136,2]
[356774602,1743155443263,-23.16767184,0.00030136,2]
[356774670,1743155445894,-500.0,0.00030135,2]
[356774671,1743155445904,-3000.39234999,0.00030136,2]
[356774672,1743155445951,-500.0,0.00030135,2]
[356774673,1743155445960,-1527.81841023,0.00030136,2]
[356774674,1743155445972,-681.60000001,0.00030136,2]
[356774676,1743155480075,-158.25871196,0.00030135,2]
[356774677,1743155544110,-167.60647244,0.00030036,2]
[356774678,1743155556972,-216.31183923,0.00030135,2]
[356774679,1743155602333,-383.91831167,0.00030136,3]
[356774681,1743155615110,-34.6497926,0.00030136,3]
[356774682,1743155623074,-194.90784275,0.00030136,3]
[356774683,1743155635555,-226.54085418,0.00030036,2]
[356774684,1743155673724,-198.71719148,0.00030136,3]
[356774685,1743155693298,-383.91831167,0.00029068,2]
[356774716,1743156425596,-218.49776043,0.00024703,3]
[356774717,1743156453113,-906.19813967,0.00024703,3]
[356774718,1743156455456,-250.0,0.00024703,3]
[356774719,1743156546067,-326.25236843,0.00024703,3]
[356774720,1743156546088,-1045.248201,0.0002876,2]
[356774721,1743156546110,-1918.3320052,0.00028846,2]
[356774722,1743156546142,-300.0,0.00029067,2]
[356774723,1743156546162,-8558.70065233,0.00029068,2]
[356774724,1743156553054,468.49776043,0.00024953,3]
[356774749,1743156632327,-321.1328995,0.000299,8]
[356774750,1743156632341,-185.14654503,0.00029997,2]
[356774757,1743156638012,-114.85345497,0.00029997,2]
[356774758,1743156638022,-895.10319183,0.00029998,5]
[356774759,1743156638054,-11243.26019297,0.00029998,5]
[356774760,1743156638064,-7768.14321328,0.00029998,5]
[356774761,1743156638133,-372.19459803,0.00029998,5]